fUSD/lending_fUSD_20250606
["ID","MTS","AMOUNT","RATE_DAILY","PERIOD"]
[364706639,1749213052104,-1347.81,0.00030164,7]
[364706641,1749213052114,-480.0,0.00030164,7]
[364706642,1749213052123,-524.63,0.00030164,7]
[364706644,1749213052132,-1332.67,0.00030164,7]
[364706646,1749213052141,-5244.54,0.00030164,7]
[364706648,1749213052150,-480.0,0.00030164,7]
[364706650,1749213052159,-636.3,0.00030164,7]
[364706652,1749213052168,-735.38,0.00030164,7]
[364706654,1749213052177,-1973.05,0.00030164,7]
[364706656,1749213052186,-480.0,0.00030164,7]
[364706658,1749213052195,-480.0,0.00030164,7]
[364706660,1749213052205,-2210.41,0.00030164,7]
[364706662,1749213052216,-1613.92,0.00030164,7]
[364706664,1749213052225,-444.0,0.00030164,7]
[364706666,1749213052235,-444.0,0.00030164,7]
[364706668,1749213052244,-485.82490159,0.00030164,7]
[364706670,1749213052253,-2119.73,0.00030164,7]
[364706672,1749213052263,-480.0,0.00030164,7]
[364706674,1749213052275,-480.0,0.00030164,7]
[364706676,1749213052285,-834.19,0.00030164,7]
[364706678,1749213052294,-480.0,0.00030164,7]
[364706680,1749213052303,-480.0,0.00030164,7]
[364706683,1749213052312,-185.7570599,0.00030164,7]
[364706684,1749213052322,-492.5637342,0.00030164,7]
[364706686,1749213052331,-466.75274969,0.00030164,7]
[364706688,1749213052340,-480.0,0.00030164,7]
[364706690,1749213052350,-480.0,0.00030164,7]
[364706693,1749213052359,-901.7,0.00030164,7]
[364706694,1749213052369,-6664.5,0.00030164,7]
[364706697,1749213052378,-187.24343611,0.00030164,7]
[364706699,1749213052388,-702.63,0.00030164,7]
[364706701,1749213052397,-14529.98,0.00030164,7]
[364706703,1749213052408,-480.0,0.00030164,7]
[364706705,1749213052417,-481.29722211,0.00030164,7]
[364706707,1749213052426,-480.0,0.00030164,7]
[364706709,1749213052435,-863.97,0.00030164,7]
[364706710,1749213052444,-480.0,0.00030164,7]
[364706712,1749213052454,-902.27,0.00030164,7]
[364706715,1749213052463,-480.0,0.00030164,7]
[364706717,1749213052473,-480.0,0.00030164,2]
[364706718,1749213052482,-522.75,0.00030164,7]
[364706720,1749213052492,-994.87,0.00030164,7]
[364706722,1749213052502,-480.0,0.00030164,7]
[364706725,1749213052512,-3222.48,0.00030164,7]
[364706726,1749213052523,-2770.23,0.00030164,7]
[364706728,1749213052533,-901.03,0.00030164,7]
[364706730,1749213052542,-426.71356169,0.00030164,7]
[364706732,1749213052551,-1593.16,0.00030164,7]
[364706734,1749213052561,-1237.03,0.00030164,7]
[364706736,1749213052571,-771.51,0.00030164,7]
[364706738,1749213052581,-480.0,0.00030164,7]
[364706740,1749213052590,-569.07233809,0.00030164,7]
[364706742,1749213052601,-485.51000896,0.00030164,7]
[364706744,1749213052612,-1167.82,0.00030164,7]
[364706746,1749213052621,-480.0,0.00030164,7]
[364706748,1749213052631,-2372.89,0.00030164,7]
[364706750,1749213052641,-480.0,0.00030164,7]
[364706752,1749213052650,-552.11576029,0.00030164,7]
[364706754,1749213052659,-480.0,0.00030164,7]
[364706756,1749213052669,-500.0,0.00030164,7]
[364706758,1749213052679,-2073.23,0.00030164,7]
[364706760,1749213052689,-500.0,0.00030164,7]
[364706762,1749213052698,-500.0,0.00030164,7]
[364706764,1749213052708,-480.0,0.00030164,7]
[364706766,1749213052718,-500.0,0.00030164,7]
[364706768,1749213052727,-2417.35,0.00030164,7]
[364706770,1749213052737,-500.0,0.00030164,7]
[364706772,1749213052746,-500.0,0.00030164,7]
[364706774,1749213052757,-500.0,0.00030164,7]
[364706776,1749213052769,-500.0,0.00030164,7]
[364706778,1749213052779,-480.0,0.00030164,7]
[364706780,1749213052789,-500.0,0.00030164,7]
[364706782,1749213052798,-500.0,0.00030164,7]
[364706784,1749213052808,-500.0,0.00030164,7]
[364706786,1749213052818,-481.12069552,0.00030164,7]
[364706789,1749213052827,-480.0,0.00030164,7]
[364706790,1749213052838,-500.0,0.00030164,7]
[364706792,1749213052847,-500.0,0.00030164,7]
[364706794,1749213052856,-1285.47,0.00030164,7]
[364706796,1749213052865,-500.0,0.00030164,7]
[364706798,1749213052875,-500.0,0.00030164,7]
[364706800,1749213052884,-480.0,0.00030164,7]
[364706803,1749213052893,-500.0,0.00030164,7]
[364706805,1749213052902,-500.0,0.00030164,7]
[364706807,1749213052912,-500.0,0.00030164,7]
[364706808,1749213052921,-610.13782369,0.00030164,7]
[364706810,1749213052930,-477.16955935,0.00030164,7]
[364706813,1749213052939,-1370.12,0.00030164,7]
[364706814,1749213052948,-3928.99,0.00030164,7]
[364706816,1749213052958,-899.66,0.00030164,7]
[364706818,1749213052967,-1425.14,0.00030164,7]
[364706820,1749213052976,-480.0,0.00030164,7]
[364706822,1749213052985,-639.05,0.00030164,7]
[364706824,1749213052994,-7192.77,0.00030164,7]
[364706826,1749213053003,-480.0,0.00030164,7]
[364706828,1749213053012,-1631.58,0.00030164,7]
[364706830,1749213053023,-849.83,0.00030164,7]
[364706832,1749213053033,-318.6672608,0.00030164,7]
[364706834,1749213053042,-1207.32,0.00030164,7]
[364706836,1749213053051,-480.0,0.00030164,7]
[364706838,1749213053061,-480.0,0.00030164,7]
[364706840,1749213053070,-320.14017578,0.00030164,7]
[364706843,1749213053079,-480.0,0.00030164,7]
[364706844,1749213053088,-498.08303476,0.00030164,7]
[364706847,1749213053097,-539.04,0.00030164,7]
[364706849,1749213053106,-1079.56,0.00030164,7]
[364706851,1749213053115,-640.84,0.00030164,7]
[364706853,1749213053124,-678.48,0.00030164,7]
[364706855,1749213053133,-1143.95,0.00030164,7]
[364706857,1749213053142,-480.0,0.00030164,7]
[364706858,1749213053151,-1978.82,0.00030164,7]
[364706860,1749213053161,-1877.05,0.00030164,7]
[364706862,1749213053169,-480.0,0.00030164,7]
[364706864,1749213053178,-50102.11068836,0.00030164,7]
[364707033,1749213054827,-969.55540001,0.00030164,7]
[364707037,1749213054847,-863.57003551,0.00030164,7]
[364707039,1749213054860,-731.22280244,0.00030164,7]
[364707333,1749213100181,850.0,0.00035616,120]
[364707344,1749213525723,152.16,0.00013699,2]
[364707346,1749213629835,250.0,0.00019,2]
[364707350,1749213811926,1000.0,0.00035616,120]
[364707352,1749213884306,200.0,0.00035616,120]
[364707369,1749214046566,165.49,0.0002887,120]
[364707370,1749214046961,165.49,0.00032479,120]
[364707388,1749214073733,-282.18765376,0.00020951,2]
[364707389,1749214073756,-152.16,0.00020951,2]
[364707390,1749214073777,-300.0,0.00021,2]
[364707391,1749214079614,-500.0,0.00024932,2]
[364707392,1749214081770,300.0,0.00029836,120]
[364707394,1749214099470,-153.0,0.00027123,2]
[364707395,1749214099493,-153.0,0.00027123,2]
[364707396,1749214099515,-799.97984088,0.00027148,2]
[364707397,1749214099538,-413.32,0.00027191,2]
[364707398,1749214099560,-209.0,0.0002783,2]
[364707399,1749214152285,480.0,0.0002,2]
[364707400,1749214156303,480.0,0.0002,4]
[364707402,1749214160988,480.0,0.0002,4]
[364707419,1749214231773,-152.16,0.00028203,2]
[364707420,1749214231783,-209.0,0.0002828,2]
[364707421,1749214231793,-209.0,0.0002873,2]
[364707422,1749214231804,-203.0,0.00028996,2]
[364707423,1749214231813,-369.29926,0.00028996,2]
[364707424,1749214231823,-165.6,0.00029004,30]
[364707425,1749214231833,-1000.0,0.00029026,2]
[364707426,1749214231842,-207.4,0.00029098,2]
[364707427,1749214231851,-1000.0,0.00029116,2]
[364707428,1749214231860,-209.0,0.0002918,2]
[364707429,1749214231869,-159.828819,0.00029259,6]
[364707430,1749214231879,-413.32,0.00029455,2]
[364707431,1749214231889,-206.44,0.000295,2]
[364707432,1749214231899,-206.44,0.000295,2]
[364707433,1749214231908,-206.44,0.000296,2]
[364707434,1749214231918,-209.0,0.0002963,2]
[364707435,1749214231928,-206.44,0.000297,2]
[364707436,1749214231937,-800.0,0.00029836,4]
[364707437,1749214231946,-250.0,0.00029836,2]
[364707438,1749214231956,-1200.0,0.00029863,2]
[364707439,1749214231965,-5449.32510864,0.00029864,2]
[364707440,1749214231974,-206.44,0.000299,2]
[364707441,1749214231988,-540.8137368,0.000299,21]
[364707442,1749214231998,-150.0,0.0002995,2]
[364707443,1749214232007,-500.0,0.00029968,2]
[364707444,1749214232017,-151.0,0.00029968,2]
[364707445,1749214232027,-150.0,0.00029993,2]
[364707446,1749214232037,-423.70710338,0.0003,2]
[364707447,1749214232046,-2724.65,0.0003001,2]
[364707448,1749214232057,-2724.65,0.0003003,2]
[364707449,1749214232067,-1443.59777823,0.00030044,2]
[364707450,1749214232077,-576.07075442,0.00030044,21]
[364707451,1749214232087,-178.68407564,0.00030051,2]
[364707452,1749214232096,-727.3196,0.00030051,2]
[364707453,1749214232106,-300.0,0.00030054,21]
[364707454,1749214232115,-166.45435853,0.00030054,2]
[364707455,1749214232125,-158.8834408,0.00030054,2]
[364707456,1749214232134,-172.65408418,0.00030054,2]
[364707457,1749214232144,-1001.6974,0.00030054,2]
[364707458,1749214232154,-575.74525914,0.00030055,2]
[364707459,1749214232165,-331.14851368,0.00030055,2]
[364707460,1749214232203,-672.089998,0.00030055,2]
[364708042,1749214238056,-3421.01622918,0.00030055,2]
[364708044,1749214238067,-158.88344073,0.00030055,2]
[364708046,1749214238077,-101.94465898,0.00030057,2]
[364708608,1749214243960,-457.2,0.0002719,2]
[364708610,1749214243969,-457.2,0.00029454,2]
[364708612,1749214243979,-150.0,0.00029908,2]
[364708614,1749214243991,-150.0,0.00029933,2]
[364708616,1749214244000,-150.0,0.00029972,2]
[364708618,1749214244010,-150.0,0.00030005,2]
[364708620,1749214244020,-150.0,0.00030031,2]
[364708622,1749214244030,-287.6013756,0.00030033,2]
[364708624,1749214244039,-150.0,0.00030046,2]
[364708626,1749214244049,-56.93878175,0.00030057,2]
[364708628,1749214244058,-158.88344073,0.00030058,2]
[364708630,1749214244070,-158.88344073,0.00030059,2]
[364708632,1749214244080,-158.88344073,0.0003006,2]
[364708634,1749214244090,-158.88344073,0.00030062,2]
[364708636,1749214244099,-158.88344073,0.00030063,2]
[364708638,1749214244109,-195.53116428,0.00030064,2]
[364708640,1749214244119,-250.05297474,0.00030064,2]
[364708642,1749214244130,-172.65408418,0.00030064,2]
[364708644,1749214244140,-158.88344073,0.00030064,2]
[364708646,1749214244149,-1443.59777822,0.00030064,2]
[364708648,1749214244159,-174.97167064,0.00030069,2]
[364708650,1749214244168,-150.0,0.00030073,2]
[364708651,1749214244178,-209.0,0.0003008,2]
[364708654,1749214244187,-213.0,0.0003008,30]
[364708656,1749214244197,-1443.59777822,0.00030085,2]
[364708657,1749214244206,-1239.0,0.000301,2]
[364708659,1749214244216,-1239.0,0.000301,2]
[364708661,1749214244225,-1239.0,0.000301,2]
[364708664,1749214244234,-1239.0,0.000301,2]
[364708666,1749214244247,-1239.0,0.000301,2]
[364708668,1749214244258,-1239.0,0.000301,2]
[364708670,1749214244267,-1239.0,0.000301,2]
[364708672,1749214244277,-1239.0,0.000301,2]
[364708674,1749214244286,-1239.0,0.000301,2]
[364708676,1749214244296,-1239.0,0.000301,2]
[364708678,1749214244305,-308.31824401,0.00030101,2]
[364708680,1749214244315,-1443.59777822,0.00030105,2]
[364708682,1749214244325,-150.0,0.0003011,2]
[364708684,1749214244335,-1206.271,0.00030111,25]
[364708685,1749214244344,-150.0,0.00030114,2]
[364708687,1749214244354,-1443.59777822,0.00030126,2]
[364708689,1749214244363,-176.32,0.00030137,80]
[364708691,1749214244372,-1097.45088849,0.00030143,2]
[364708692,1749214244382,-1000.0,0.00030145,2]
[364708693,1749214244392,-1443.59777822,0.00030146,2]
[364708694,1749214244402,-500.0,0.0003015,7]
[364708695,1749214244411,-647.20709056,0.00030152,7]
[364708696,1749214244421,-500.0,0.00030153,2]
[364708697,1749214244430,-500.0,0.00030153,2]
[364708698,1749214244439,-500.0,0.00030153,2]
[364708699,1749214244449,-500.0,0.00030153,2]
[364708700,1749214244458,-500.0,0.00030153,2]
[364708701,1749214244467,-157.67691862,0.00030153,2]
[364708702,1749214244476,-200.01054155,0.00030153,2]
[364708703,1749214244485,-151.88,0.00030154,2]
[364708704,1749214244495,-204.14670973,0.00030154,2]
[364708705,1749214244504,-283364.02450271,0.00030154,2]
[364708832,1749214245757,-1709.2545049,0.00028747,2]
[364708839,1749214245814,-2004.77467243,0.00028747,2]
[364708841,1749214245827,-180.64164269,0.00028747,2]
[364708843,1749214245836,-2343.71602055,0.00030154,2]
[364708868,1749214246083,-52006.37649559,0.00030154,2]
[364710249,1749214483741,359.0,0.00020003,2]
[364710251,1749214561409,32458.73629701,0.0003561,120]
[364710252,1749214608532,1803.32,0.00035616,120]
[364710253,1749214734538,200.0,0.00035616,120]
[364710254,1749214837186,152.66,0.00013699,2]
[364710256,1749214852948,-152.0,0.00021918,2]
[364710257,1749214929803,-0.66,0.00021918,2]
[364710258,1749214929834,-177.76,0.0002309,2]
[364710259,1749214929863,-499.58,0.00024932,2]
[364710260,1749214956040,-200.0,0.00024832,2]
[364710261,1749215035367,-200.01393345,0.00025713,2]
[364710262,1749215035393,-181.83514818,0.00026495,2]
[364710263,1749215035420,-200.01393345,0.00026594,2]
[364710264,1749215035448,-153.0,0.00027123,2]
[364710265,1749215035560,-153.0,0.00027123,2]
[364710266,1749215035586,-295.84852,0.0002717,2]
[364710267,1749215084999,0.28846492,0.00026,5]
[364710268,1749215126756,155.19,0.00028852,120]
[364710273,1749215153872,2285.68800636,0.00035616,120]
[364710285,1749215302421,514.078,0.0002,10]
[364710292,1749215335748,307.52244782,0.000356,120]
[364710293,1749215350800,210.71153508,0.000258,120]
[364710296,1749215357978,211.0,0.000259,120]
[364710318,1749215432037,-243.61102155,0.0002599,10]
[364710319,1749215432047,-468.11,0.00026929,2]
[364710320,1749215432057,-295.84852,0.0002696,2]
[364710321,1749215432066,-295.84852,0.0002698,2]
[364710322,1749215432076,-295.84852,0.0002705,2]
[364710323,1749215432086,-259.55495059,0.0002713,2]
[364710324,1749215432098,-36.29356941,0.0002713,2]
[364710325,1749215432108,-295.84852,0.0002721,2]
[364710326,1749215432118,-179.63,0.00028059,2]
[364710327,1749215432128,-536.02791059,0.000282,2]
[364710328,1749215432144,-969.5079994,0.000282,2]
[364710329,1749215432154,-152.0,0.00028447,3]
[364710330,1749215432163,-207.4,0.00028499,2]
[364710331,1749215432173,-1164.0,0.00028516,2]
[364710332,1749215432182,-604.82319461,0.00028724,2]
[364710333,1749215432191,-318.64,0.00028862,2]
[364710334,1749215432201,-203.0,0.00028872,2]
[364710335,1749215432211,-1200.0,0.00028899,2]
[364710336,1749215432221,-702.09004855,0.000289,20]
[364710337,1749215432231,-300.0,0.00029024,2]
[364710338,1749215432240,-300.0,0.00029024,2]
[364710339,1749215432250,-1000.0,0.00029025,2]
[364710340,1749215432259,-468.11,0.00029193,2]
[364710342,1749215432269,-702.09004843,0.0002921,20]
[364710344,1749215432278,-203.70524561,0.0002922,2]
[364710346,1749215432287,-801.0,0.00029338,2]
[364710348,1749215432296,-636.0,0.00029338,2]
[364710349,1749215432305,-670.766,0.00029338,2]
[364710352,1749215432315,-926.0,0.00029338,2]
[364710353,1749215432324,-102.09041639,0.00029338,2]
[364710356,1749215432336,-419.63577014,0.00029338,2]
[364710360,1749215432370,-35.27381347,0.00029338,2]
[364710362,1749215432379,-1239.24679661,0.00029338,2]
[364710365,1749215432391,-562.939632,0.00029338,2]
[364710442,1749215433284,250.0,0.00019,2]
[364710473,1749215438069,-517.29396528,0.00029017,2]
[364710474,1749215438127,-482.70603472,0.00029017,2]
[364710475,1749215438136,-196.81357139,0.00029338,2]
[364710476,1749215438146,-1274.0,0.00029338,2]
[364710477,1749215438155,-151.0,0.0002942,2]
[364710478,1749215438164,-300.0,0.0002942,2]
[364710479,1749215438174,-170.57,0.00029438,2]
[364710480,1749215438183,-300.39,0.00029438,2]
[364710482,1749215438193,-150.39,0.00029438,2]
[364710484,1749215438202,-170.57,0.00029438,2]
[364710486,1749215438211,-93.31829399,0.00029438,2]
[364710670,1749215440258,-361.13170601,0.00029438,2]
[364710672,1749215440268,-170.57,0.00029438,2]
[364710674,1749215440277,-706.29,0.00029438,2]
[364710676,1749215440287,-170.57,0.00029438,2]
[364710678,1749215440297,-163.22,0.00029438,2]
[364710680,1749215440307,-170.57,0.00029438,2]
[364710682,1749215440317,-163.22,0.00029438,2]
[364710684,1749215440327,-340.47,0.00029438,2]
[364710686,1749215440337,-163.22,0.00029438,2]
[364710688,1749215440346,-1188.91,0.00029438,2]
[364710690,1749215440356,-1162.75,0.00029438,2]
[364710693,1749215440367,-341.08,0.00029438,2]
[364710694,1749215440377,-1162.75,0.00029438,2]
[364710696,1749215440387,-1162.75,0.00029438,2]
[364710698,1749215440397,-1162.75,0.00029438,2]
[364710700,1749215440407,-163.22,0.00029438,2]
[364710702,1749215440416,-163.22,0.00029438,2]
[364710704,1749215440427,-163.22,0.00029438,2]
[364710706,1749215440437,-163.22,0.00029438,2]
[364710708,1749215440447,-163.22,0.00029438,2]
[364710710,1749215440457,-163.22,0.00029438,2]
[364710712,1749215440466,-163.22,0.00029438,2]
[364710714,1749215440476,-163.22,0.000295,2]
[364710716,1749215440486,-702.09004843,0.00029521,21]
[364710718,1749215440496,-1254.0,0.00029639,2]
[364710720,1749215440506,-702.09004843,0.00029831,21]
[364710722,1749215440515,-250.0,0.00029836,2]
[364710724,1749215440525,-2258.42410694,0.00029861,2]
[364710726,1749215440535,-1000.0,0.00029861,15]
[364710728,1749215440545,-1158.0,0.00029863,2]
[364710730,1749215440558,-7017.0,0.00029863,2]
[364710732,1749215440567,-299.99,0.00029863,2]
[364710733,1749215440577,-155.0,0.00029863,2]
[364710735,1749215440588,-4081.0,0.00029863,2]
[364710737,1749215440599,-883.0,0.00029863,2]
[364710739,1749215440608,-2258.39,0.00029864,2]
[364710741,1749215440619,-1097.45088849,0.00029865,2]
[364710743,1749215440628,-215.0738,0.00029868,2]
[364710745,1749215440641,-306.48973787,0.00029895,2]
[364710747,1749215440650,-150.0,0.00029924,2]
[364710749,1749215440660,-1000.0,0.00029957,20]
[364710751,1749215440670,-166.66,0.0002996,2]
[364710753,1749215440679,-2258.39,0.0002997,2]
[364710755,1749215440690,-150.0,0.00029991,2]
[364710757,1749215440702,-1000.0,0.00029999,2]
[364710759,1749215440711,-1283.76267357,0.0003,2]
[364710761,1749215440721,-288.42828419,0.00030008,7]
[364710763,1749215440730,-164.08632327,0.00030024,2]
[364710765,1749215440739,-576.07075442,0.00030024,21]
[364710767,1749215440749,-2258.39,0.0003003,2]
[364710769,1749215440759,-178.68407564,0.00030035,2]
[364710771,1749215440769,-814.88374017,0.00030035,2]
[364710773,1749215440778,-1000.0,0.00030043,25]
[364710775,1749215440788,-564.137,0.00030044,2]
[364710777,1749215440797,-253.84951262,0.00030045,2]
[364710779,1749215440807,-150.0,0.00030053,7]
[364710781,1749215440816,-159.828819,0.00030054,12]
[364710783,1749215440826,-1000.0,0.00030073,30]
[364710784,1749215440835,-150.0,0.00030082,7]
[364710786,1749215440845,-150.0,0.00030096,7]
[364710788,1749215440854,-150.0,0.00030098,2]
[364710790,1749215440864,-200.0,0.000301,14]
[364710792,1749215440873,-200.0,0.000301,14]
[364710794,1749215440882,-200.0,0.000301,14]
[364710796,1749215440893,-200.0,0.000301,14]
[364710798,1749215440902,-200.0,0.000301,14]
[364710800,1749215440911,-200.0,0.000301,14]
[364710802,1749215440921,-200.0,0.000301,14]
[364710804,1749215440930,-200.0,0.000301,14]
[364710806,1749215440939,-200.0,0.000301,14]
[364710808,1749215440948,-200.0,0.000301,14]
[364710810,1749215440957,-200.0,0.000301,14]
[364710812,1749215440966,-200.0,0.000301,14]
[364710814,1749215440976,-200.0,0.000301,14]
[364710816,1749215440986,-200.0,0.000301,14]
[364710818,1749215440996,-200.0,0.000301,14]
[364710820,1749215441005,-200.0,0.000301,14]
[364710822,1749215441014,-200.0,0.000301,14]
[364710823,1749215441023,-200.0,0.000301,14]
[364710825,1749215441032,-200.0,0.000301,14]
[364710827,1749215441041,-200.0,0.000301,14]
[364710829,1749215441050,-200.0,0.000301,14]
[364710831,1749215441059,-200.0,0.000301,14]
[364710833,1749215441068,-200.0,0.000301,14]
[364710835,1749215441077,-200.0,0.000301,14]
[364710837,1749215441087,-200.0,0.000301,14]
[364710839,1749215441096,-200.0,0.000301,14]
[364710841,1749215441106,-200.0,0.000301,14]
[364710843,1749215441116,-200.0,0.000301,14]
[364710845,1749215441125,-200.0,0.000301,14]
[364710847,1749215441134,-200.0,0.000301,14]
[364710849,1749215441143,-295.0,0.000301,14]
[364710851,1749215441152,-159.0,0.000301,22]
[364710853,1749215441161,-200.516106,0.000301,2]
[364710855,1749215441170,-1500.0,0.000301,2]
[364710857,1749215441180,-150.0,0.00030101,2]
[364710859,1749215441189,-150.0,0.00030109,7]
[364710861,1749215441199,-965.017,0.00030113,25]
[364710863,1749215441209,-151.86,0.00030114,2]
[364710865,1749215441218,-204.14670973,0.00030114,2]
[364710867,1749215441227,-500.0,0.00030124,2]
[364710869,1749215441236,-500.0,0.00030124,2]
[364710871,1749215441246,-157.67691862,0.00030124,2]
[364710873,1749215441256,-14645.66814131,0.00030124,7]
[364710875,1749215441265,-31106.61909429,0.00030124,7]
[364710877,1749215441277,-277.26499999,0.00030124,7]
[364710879,1749215441288,-3774.56254504,0.00030124,7]
[364710883,1749215441314,-420503.75860446,0.00030124,7]
[364711389,1749215446342,-163.22,0.00029438,2]
[364711391,1749215446352,-153.20903222,0.00030024,2]
[364711393,1749215446362,-2657.00565349,0.00030124,7]
[364712088,1749215630450,200.0,0.00035616,120]
[364712089,1749215649247,175.03,0.0003516,120]
[364712091,1749215923833,-154.34736331,0.00029068,30]
[364712092,1749215923862,-154.34736331,0.0002926,30]
[364712093,1749215923950,-154.34736331,0.00029479,30]
[364712094,1749215923976,-154.34736331,0.00029699,30]
[364712095,1749215924003,-154.34736331,0.00029918,30]
[364712096,1749215950197,-759.95124581,0.000299,21]
[364712099,1749216077945,-176.0,0.00023125,2]
[364712100,1749216132961,165.49,0.0002895,120]
[364712901,1749216348490,151.27,0.00013699,2]
[364712904,1749216418524,437.11,0.00035616,120]
[364712945,1749216459451,1113.19,0.0003561,120]
[364712946,1749216476009,379.24461387,0.0002,4]
[364712948,1749216478006,3469.48538613,0.0002,2]
[364712949,1749216478031,4000.0,0.0002,2]
[364712950,1749216478055,4000.0,0.0002,2]
[364712951,1749216478078,4000.0,0.0002,2]
[364712952,1749216478101,4000.0,0.0002,2]
[364712953,1749216478124,4000.0,0.0002,2]
[364712954,1749216478147,4000.0,0.0002,2]
[364712955,1749216478171,4000.0,0.0002,2]
[364712956,1749216478194,4000.0,0.0002,2]
[364712957,1749216478216,4000.0,0.0002,2]
[364712958,1749216478239,4000.0,0.0002,2]
[364712959,1749216478261,4000.0,0.0002,2]
[364712960,1749216478282,4000.0,0.0002,2]
[364712961,1749216478303,4000.0,0.0002,2]
[364712962,1749216478327,429705.62689159,0.0002,2]
[364712963,1749216480870,1113.19,0.0003561,120]
[364712969,1749216564051,200.0,0.00035616,120]
[364712970,1749216568123,-151.27,0.00020951,2]
[364712971,1749216568148,-769.57468647,0.00022,7]
[364712972,1749216568172,-3338.20703272,0.00023,15]
[364712973,1749216568196,-0.16,0.00023125,2]
[364712974,1749216568220,-151.00000001,0.00023125,2]
[364712975,1749216568244,-823.93789746,0.00023125,2]
[364712976,1749216568269,-95420.51077201,0.000235,2]
[364712977,1749216568295,-5000.00513862,0.00024,5]
[364712978,1749216568318,-4340.259862,0.00024755,2]
[364712979,1749216568340,-729.66614051,0.0002488,7]
[364712980,1749216568364,-169.31957418,0.000249,2]
[364712981,1749216568386,-475.99637752,0.00025,3]
[364712982,1749216568420,-734.61953751,0.000252,12]
[364712983,1749216568452,-734.6195375,0.0002521,12]
[364712984,1749216568485,-734.6195375,0.00025521,13]
[364712985,1749216568516,-734.6195375,0.00025831,13]
[364712986,1749216568542,-203.73,0.00025895,2]
[364712987,1749216568577,-734.6195375,0.00026141,14]
[364712988,1749216568603,-1694.34896816,0.000264,2]
[364712989,1749216568638,-734.6195375,0.00026452,15]
[364712990,1749216568663,-652.74,0.00026733,2]
[364712991,1749216568698,-734.6195375,0.00026762,15]
[364712992,1749216568723,-203.0,0.00026872,2]
[364712993,1749216568756,-734.6195375,0.00027072,16]
[364712994,1749216568787,-734.6195375,0.00027383,17]
[364712995,1749216568819,-734.6195375,0.00027693,17]
[364712996,1749216568851,-734.6195375,0.00028003,18]
[364712997,1749216568877,-151.27,0.00028203,2]
[364712998,1749216568908,-734.6195375,0.00028314,18]
[364712999,1749216568935,-352.11385569,0.00028601,2]
[364713000,1749216568966,-734.6195375,0.00028624,19]
[364713001,1749216568989,-180.64164269,0.00028724,2]
[364713002,1749216569013,-2556.99,0.00028818,2]
[364713003,1749216569038,-180.76,0.00028859,2]
[364713004,1749216569064,-300.0,0.00028899,2]
[364713005,1749216569092,-1200.0,0.00028934,2]
[364713006,1749216569125,-734.6195375,0.00028934,20]
[364713007,1749216569150,-4843.62188731,0.00028935,2]
[364713015,1749216632099,-336.66692717,0.0002886,2]
[364713016,1749216632162,-663.33307283,0.0002886,2]
[364713017,1749216632173,-1200.0,0.00028934,2]
[364713018,1749216632182,-544.64690317,0.00028935,2]
[364713019,1749216632197,-975.92962597,0.00028935,2]
[364713020,1749216632344,-7336.08158355,0.00028935,2]
[364713021,1749216632354,-300.0,0.00028949,2]